Body Name,Service Area Categorisation,Responsible Unit,Expenses Type,Date,Transaction number,Amount,Supplier Name,Card payment,
Fenland District Council,Cultural and Related Services,Sports Development,Employee Costs,13/02/2019,20200910,501.44 ,3 Counties Coaches,,
Fenland District Council,Environment Services,Public Health,Supplies and Services,05/02/2019,20200766,565.00 ,A & G Pet Medical T/a Triovet Vet Practice,,
Fenland District Council,Support Services,Human Resources,Employee Costs,05/02/2019,20200796,"1,995.00 ",Act Now Training,,
Fenland District Council,Housing General Fund Services,Travellers Services,Premises Costs,05/02/2019,20200679,650.00 ,Adc (East Anglia) Ltd,,
Fenland District Council,Cultural and Related Services,Leisure Centres,Premises Costs,05/02/2019,20200756,"2,200.00 ",Adc (East Anglia) Ltd,,
Fenland District Council,Trading,Economic Estates,Premises Costs,05/02/2019,20200760,"1,903.00 ",Adcock Refrigeration & Air Conditioning Ltd,,
Fenland District Council,Support Services,Vehicle Workshop & Transport,Transport Costs,20/02/2019,20200871,541.55 ,AEBI Schmidt Uk Limited,,
Fenland District Council,Support Services,Vehicle Workshop & Transport,Transport Costs,20/02/2019,20201035,525.11 ,AEBI Schmidt Uk Limited,,
Fenland District Council,Support Services,Vehicle Workshop & Transport,Transport Costs,05/02/2019,20200739,740.71 ,Allstar Business Solutions Ltd,,
Fenland District Council,Support Services,Vehicle Workshop & Transport,Transport Costs,20/02/2019,20201203,751.47 ,Allstar Business Solutions Ltd,,
Fenland District Council,Support Services,Vehicle Workshop & Transport,Transport Costs,27/02/2019,20201487,797.41 ,Allstar Business Solutions Ltd,,
Fenland District Council,Trading,Economic Estates,Premises Costs,27/02/2019,20201407,800.00 ,Alumend,,
Fenland District Council,Central Services,Elections & Electoral Registration,Supplies and Services,26/02/2019,10034716,3.53 ,Amazon,Y,
Fenland District Council,Support Services,Accountancy,Supplies and Services,26/02/2019,10034717,7.99 ,Amazon,Y,
Fenland District Council,Support Services,Fenland Hall,Supplies and Services,26/02/2019,10034718,10.81 ,Amazon,Y,
Fenland District Council,Planning Services,Planning Enforcement,Supplies and Services,26/02/2019,10034721,33.02 ,Amazon,Y,
Fenland District Council,Support Services,Information & Communication Technology,Supplies and Services,26/02/2019,10034723,106.64 ,Amazon,Y,
Fenland District Council,Planning Services,Conservation,Supplies and Services,26/02/2019,10034724,109.86 ,Amazon,Y,
Fenland District Council,Support Services,Fenland Hall,Supplies and Services,26/02/2019,10034731,17.08 ,Amazon,Y,
Fenland District Council,Environment Services,Cemeteries,Supplies and Services,26/02/2019,10034733,28.99 ,Amazon,Y,
Fenland District Council,Planning Services,HLF - High St Wisbech,Supplies and Services,26/02/2019,10034734,23.24 ,Amazon,Y,
Fenland District Council,Environment Services,Housing Standards,Supplies and Services,26/02/2019,10034735,132.97 ,Amazon,Y,
Fenland District Council,Environment Services,Refuse Collection - Domestic,Third Party Payments,05/02/2019,20200554,"9,161.34 ",AmeyCespa (East) Ltd,,
Fenland District Council,Trading,Marine Services,Supplies and Services,20/02/2019,20201073,"1,000.00 ",Andrew  Jackson,,
Fenland District Council,Housing General Fund Services,Travellers Services,Premises Costs,13/02/2019,20200721,772.51 ,Anglian Water,,
Fenland District Council,Trading,Economic Estates,Premises Costs,27/02/2019,20201189,970.98 ,Anglian Water Business Ltd (National),,
Fenland District Council,Trading,Economic Estates,Premises Costs,20/02/2019,20201192,"1,157.17 ",Anglian Water Business Ltd (National),,
Fenland District Council,Housing General Fund Services,Travellers Services,Premises Costs,27/02/2019,20201443,902.90 ,Anglian Water Business Ltd (National),,
Fenland District Council,Housing General Fund Services,Homeless Persons,Premises Costs,20/02/2019,20200675,"3,375.00 ",B & H Projects Limited,,
Fenland District Council,Housing General Fund Services,Homeless Persons,Premises Costs,20/02/2019,20200676,"2,895.00 ",B & H Projects Limited,,
Fenland District Council,Car Parks,Capital Services,Capital Costs,13/02/2019,20200984,"2,148.00 ",Barcham Trees Plc,,
Fenland District Council,Car Parks,Capital Services,Capital Costs,27/02/2019,20201384,"24,703.28 ",Barhale Plc,,
Fenland District Council,Office Accommodation,Capital Services,Capital Costs,20/02/2019,20201067,"3,250.00 ",Barker Storey Matthews,,
Fenland District Council,Office Accommodation,Capital Services,Capital Costs,27/02/2019,20201435,"1,220.00 ",Barker Storey Matthews,,
Fenland District Council,Support Services,Human Resources,Third Party Payments,05/02/2019,20200574,"1,699.20 ",Bedford Borough Council,,
Fenland District Council,Support Services,Human Resources,Third Party Payments,05/02/2019,20200747,"1,288.80 ",Bedford Borough Council,,
Fenland District Council,Support Services,Human Resources,Third Party Payments,27/02/2019,20201453,"1,299.60 ",Bedford Borough Council,,
Fenland District Council,Planning Services,Conservation,Supplies and Services,26/02/2019,10034730,150.00 ,Birmingham City University,Y,
Fenland District Council,Cultural and Related Services,Leisure Centres,Supplies and Services,05/02/2019,20200207,"7,475.50 ",Bloom Procurement Services Ltd,,
Fenland District Council,Cultural and Related Services,Leisure Centres,Supplies and Services,05/02/2019,20200683,"-2,491.00 ",Bloom Procurement Services Ltd,,
Fenland District Council,Cultural and Related Services,Leisure Centres,Supplies and Services,13/02/2019,20200828,"2,092.00 ",Bloom Procurement Services Ltd,,
Fenland District Council,Cultural and Related Services,Leisure Centres,Supplies and Services,27/02/2019,20201399,"3,000.00 ",Bloom Procurement Services Ltd,,
Fenland District Council,Cultural and Related Services,Leisure Centres,Supplies and Services,27/02/2019,20201400,"8,500.00 ",Bloom Procurement Services Ltd,,
Fenland District Council,Cultural and Related Services,Leisure Centres,Supplies and Services,27/02/2019,20201401,"6,250.00 ",Bloom Procurement Services Ltd,,
Fenland District Council,Planning Services,Planning Policy,Supplies and Services,27/02/2019,20201402,"22,300.00 ",Bloom Procurement Services Ltd,,
Fenland District Council,Support Services,Information & Communication Technology,Supplies and Services,26/02/2019,10034739,532.29 ,Booking.com,Y,
Fenland District Council,Housing Grants,Capital Services,Capital Costs,05/02/2019,20200458,"4,468.75 ",Borough Council Of Kings Lynn & West Norfolk,,
Fenland District Council,Housing Grants,Capital Services,Capital Costs,05/02/2019,20200459,733.50 ,Borough Council Of Kings Lynn & West Norfolk,,
Fenland District Council,Housing Grants,Capital Services,Capital Costs,05/02/2019,20200460,"10,044.60 ",Borough Council Of Kings Lynn & West Norfolk,,
Fenland District Council,Housing Grants,Capital Services,Capital Costs,20/02/2019,20200928,"12,431.00 ",Borough Council Of Kings Lynn & West Norfolk,,
Fenland District Council,Housing Grants,Capital Services,Capital Costs,20/02/2019,20200929,"1,430.95 ",Borough Council Of Kings Lynn & West Norfolk,,
Fenland District Council,Housing Grants,Capital Services,Capital Costs,20/02/2019,20200930,"1,461.50 ",Borough Council Of Kings Lynn & West Norfolk,,
Fenland District Council,Stores holding a/c post transfer,Balance Sheet Services,Balance Sheet,27/02/2019,20201409,"4,807.62 ",Bpi Recycled Products,,
Fenland District Council,Stores holding a/c post transfer,Balance Sheet Services,Balance Sheet,27/02/2019,20201410,"4,358.64 ",Bpi Recycled Products,,
Fenland District Council,Central Services,Council Tax Cost of Collection,Income,05/02/2019,20200576,"5,722.00 ",Breckland Council,,
Fenland District Council,Central Services,Council Tax Cost of Collection,Income,20/02/2019,20201023,"5,722.00 ",Breckland Council,,
Fenland District Council,Multiple Services,Multiple Services,Supplies and Services,13/02/2019,20199573,678.88 ,Brenntag UK Limited,,
Fenland District Council,Planning Services,Community Events,Supplies and Services,26/02/2019,10034737,53.00 ,British Standards Institution,Y,
Fenland District Council,Multiple Services,Multiple Services,Premises Costs,05/02/2019,20199841,"3,812.64 ",British Telecommunications plc,,
Fenland District Council,Multiple Services,Multiple Services,Premises Costs,05/02/2019,20199842,"4,632.93 ",British Telecommunications plc,,
Fenland District Council,Multiple Services,Multiple Services,Premises Costs,05/02/2019,20199843,"4,582.45 ",British Telecommunications plc,,
Fenland District Council,Multiple Services,Multiple Services,Premises Costs,05/02/2019,20199844,"3,751.18 ",British Telecommunications plc,,
Fenland District Council,Support Services,Human Resources,Supplies and Services,20/02/2019,20200886,"2,500.00 ",Busy Bees Beniefits Ltd,,
Fenland District Council,Housing Grants,Capital Services,Capital Costs,27/02/2019,20201382,"2,426.13 ",C D Allflatt Ltd,,
Fenland District Council,Environment Services,Public Health,Premises Costs,20/02/2019,20201051,"4,317.96 ",C G Godfrey Ltd,,
Fenland District Council,Corporate and Democratic Core,Corporate Management,Supplies and Services,27/02/2019,20201451,"2,200.00 ",Cabinet Office,,
Fenland District Council,Multiple Services,Multiple Services,Premises Costs,13/02/2019,20200812,"11,069.67 ",Cable Test Limited,,
Fenland District Council,Cultural and Related Services,Leisure Centres,Premises Costs,05/02/2019,20200579,"3,895.00 ",Cambridge Asbestos Removal Ltd,,
Fenland District Council,Environment Services,Public Health,Supplies and Services,26/02/2019,10034729,100.00 ,Cambridge Council for Voluntary Service,Y,
Fenland District Council,Central Services,Land Charges,Income,13/02/2019,20200615,"11,028.00 ",Cambridgeshire County Council,,
Fenland District Council,Central Services,Land Charges,Income,13/02/2019,20200714,"9,292.00 ",Cambridgeshire County Council,,
Fenland District Council,Planning Services,Development Control,Supplies and Services,20/02/2019,20200924,"11,000.00 ",Cambridgeshire County Council,,
Fenland District Council,Environment Services,Housing Standards,Supplies and Services,13/02/2019,20200996,750.00 ,Capita Business Services Ltd,,
Fenland District Council,Support Services,Post & Reprographics,Supplies and Services,27/02/2019,20201525,"3,391.44 ",Capita Business Services Ltd,,
Fenland District Council,Housing General Fund Services,Homeless Persons,Supplies and Services,27/02/2019,20200998,896.00 ,Centennial Property Ltd T/a The Housing Network,,
Fenland District Council,Housing General Fund Services,Homeless Persons,Supplies and Services,27/02/2019,20200999,990.00 ,Centennial Property Ltd T/a The Housing Network,,
Fenland District Council,Housing General Fund Services,Homeless Persons,Supplies and Services,27/02/2019,20201493,"1,705.00 ",Centennial Property Ltd T/a The Housing Network,,
Fenland District Council,Central Services,Elections & Electoral Registration,Supplies and Services,05/02/2019,20200718,"1,498.20 ",CFH Docmail Ltd,,
Fenland District Council,Housing Grants,Capital Services,Capital Costs,20/02/2019,20200931,"1,202.12 ",Clarion Housing,,
Fenland District Council,Housing Grants,Capital Services,Capital Costs,20/02/2019,20200932,966.00 ,Clarion Housing,,
Fenland District Council,Housing Grants,Capital Services,Capital Costs,20/02/2019,20200933,"4,677.93 ",Clarion Housing,,
Fenland District Council,Housing Grants,Capital Services,Capital Costs,20/02/2019,20200934,"2,673.80 ",Clarion Housing,,
Fenland District Council,Housing General Fund Services,Homeless Persons,Supplies and Services,13/02/2019,20201005,621.09 ,Redacted - Personal data,,
Fenland District Council,Housing General Fund Services,Homeless Persons,Premises Costs,27/02/2019,20201445,"1,220.57 ",Clarion Housing,,
Fenland District Council,Trading,Marine Services,Premises Costs,13/02/2019,20200761,540.00 ,Cobra Engineering (Uk) Ltd,,
Fenland District Council,Environment Services,Refuse Collection - Domestic,Employee Costs,05/02/2019,20200740,"4,228.32 ",Comensura Limited,,
Fenland District Council,"Highways, Roads and Transportation Services",Transport Development,Employee Costs,13/02/2019,20200788,"7,708.77 ",Comensura Limited,,
Fenland District Council,Environment Services,Refuse Collection - Domestic,Employee Costs,27/02/2019,20201460,"11,162.10 ",Comensura Limited,,
Fenland District Council,Support Services,Human Resources,Employee Costs,05/02/2019,20200516,"3,426.80 ",Common Sense Services,,
Fenland District Council,Highways District,Capital Services,Capital Costs,27/02/2019,20201206,"1,293.00 ",Contract Sign Systems Limited,,
Fenland District Council,Support Services,Human Resources,Employee Costs,20/02/2019,20201360,"7,255.50 ",Creative Learning Systems,,
Fenland District Council,Regeneration Programmes,Capital Services,Capital Costs,27/02/2019,20201418,"2,720.00 ",Dallas Pierce Quintero,,
Fenland District Council,Central Services,Elections & Electoral Registration,Supplies and Services,27/02/2019,20201389,"1,500.00 ",Democracy Counts,,
Fenland District Council,Support Services,Vehicle Workshop & Transport,Transport Costs,27/02/2019,20201335,520.34 ,Dennis Eagle,,
Fenland District Council,Housing Grants,Capital Services,Capital Costs,20/02/2019,20201274,"9,660.00 ",DH Plumbing & Bathroom Services  Ltd,,
Fenland District Council,Trading,Economic Estates,Premises Costs,05/02/2019,20200533,550.00 ,Dr Tree Ltd,,
Fenland District Council,Cultural and Related Services,Recreation Grounds & Allotments,Premises Costs,13/02/2019,20200534,"2,500.00 ",Dr Tree Ltd,,
Fenland District Council,Cultural and Related Services,Recreation Grounds & Allotments,Premises Costs,13/02/2019,20200535,"2,250.00 ",Dr Tree Ltd,,
Fenland District Council,Cultural and Related Services,Recreation Grounds & Allotments,Premises Costs,13/02/2019,20200536,"1,630.00 ",Dr Tree Ltd,,
Fenland District Council,Cultural and Related Services,Recreation Grounds & Allotments,Premises Costs,13/02/2019,20201006,"1,950.00 ",Dr Tree Ltd,,
Fenland District Council,Cultural and Related Services,Recreation Grounds & Allotments,Premises Costs,13/02/2019,20201007,680.00 ,Dr Tree Ltd,,
Fenland District Council,Cultural and Related Services,Recreation Grounds & Allotments,Premises Costs,13/02/2019,20201008,680.00 ,Dr Tree Ltd,,
Fenland District Council,Cultural and Related Services,Recreation Grounds & Allotments,Premises Costs,13/02/2019,20201009,650.00 ,Dr Tree Ltd,,
Fenland District Council,Cultural and Related Services,Recreation Grounds & Allotments,Premises Costs,13/02/2019,20201011,550.00 ,Dr Tree Ltd,,
Fenland District Council,Cultural and Related Services,Recreation Grounds & Allotments,Premises Costs,13/02/2019,20201012,"5,490.00 ",Dr Tree Ltd,,
Fenland District Council,Support Services,Vehicle Workshop & Transport,Transport Costs,26/02/2019,10034712,647.50 ,DVLA,Y,
Fenland District Council,Housing General Fund Services,Controlling Migration,Supplies and Services,20/02/2019,20201186,"19,220.63 ",East Of England Local Government Association,,
Fenland District Council,"Highways, Roads and Transportation Services",Highways (District),Premises Costs,27/02/2019,20196102,"9,738.60 ",Electrical Testing Ltd,,
Fenland District Council,Highways District,Capital Services,Capital Costs,20/02/2019,20200139,"2,691.91 ",Electrical Testing Ltd,,
Fenland District Council,"Highways, Roads and Transportation Services",Highways (District),Premises Costs,20/02/2019,20201291,"10,291.22 ",Electrical Testing Ltd,,
Fenland District Council,Planning Services,Economic Development,Supplies and Services,26/02/2019,10034713,13.19 ,Email Blaster UK,Y,
Fenland District Council,Support Services,Human Resources,Employee Costs,05/02/2019,20200589,"1,440.00 ",Enspirita Limited,,
Fenland District Council,Corporate and Democratic Core,Corporate Management,Supplies and Services,05/02/2019,20200754,"9,468.00 ",Ernst & Young LLP,,
Fenland District Council,"Highways, Roads and Transportation Services",Transport Development,Supplies and Services,20/02/2019,20201071,"4,009.00 ",Fact Ltd,,
Fenland District Council,Support Services,Post & Reprographics,Supplies and Services,27/02/2019,20201337,"1,188.00 ",Fingerprint Digital Ltd,,
Fenland District Council,Planning Services,HLF - High St Wisbech,Supplies and Services,20/02/2019,20200757,700.00 ,Forgotten Heritage Limited,,
Fenland District Council,Planning Services,HLF - High St Wisbech,Supplies and Services,20/02/2019,20200758,700.00 ,Forgotten Heritage Limited,,
Fenland District Council,Planning Services,HLF - High St Wisbech,Supplies and Services,27/02/2019,20201340,700.00 ,Forgotten Heritage Limited,,
Fenland District Council,Housing Grants,Capital Services,Capital Costs,20/02/2019,20200860,"4,862.21 ",Foster Property Maintenance Ltd,,
Fenland District Council,Trading,Economic Estates,Supplies and Services,05/02/2019,20200194,762.00 ,Francotyp Postalia Ltd,,
Fenland District Council,Trading,Economic Estates,Supplies and Services,05/02/2019,20200235,762.00 ,Francotyp Postalia Ltd,,
Fenland District Council,Trading,Economic Estates,Supplies and Services,28/02/2019,20201164,762.00 ,Francotyp Postalia Ltd,,
Fenland District Council,Support Services,Vehicle Workshop & Transport,Transport Costs,05/02/2019,20200745,706.27 ,Fuchs Lubricants (Uk) Plc,,
Fenland District Council,Housing Grants,Capital Services,Capital Costs,05/02/2019,20200464,"7,759.00 ",Futureheat Plumbing & Heating Services,,
Fenland District Council,Housing Grants,Capital Services,Capital Costs,27/02/2019,20201381,"4,340.00 ",Futureheat Plumbing & Heating Services,,
Fenland District Council,Cultural and Related Services,Leisure Centres,Supplies and Services,13/02/2019,20200450,-694.06 ,G4S Cash Solutions (UK) Limited,,
Fenland District Council,Multiple Services,Multiple Services,Supplies and Services,13/02/2019,20200522,"1,927.07 ",G4S Cash Solutions (UK) Limited,,
Fenland District Council,Multiple Services,Multiple Services,Supplies and Services,13/02/2019,20200528,"2,249.79 ",G4S Cash Solutions (UK) Limited,,
Fenland District Council,Wisbech Port,Capital Services,Capital Costs,20/02/2019,20201136,"7,720.00 ",Gary Brown,,
Fenland District Council,Housing Grants,Capital Services,Capital Costs,13/02/2019,20200857,"4,571.66 ",Gaswise,,
Fenland District Council,Support Services,Vehicle Workshop & Transport,Transport Costs,27/02/2019,20201503,934.44 ,Guest Motors Limited,,
Fenland District Council,Multiple Services,Multiple Services,Supplies and Services,05/02/2019,20200191,570.00 ,H M Land Registry,,
Fenland District Council,Trading,Marine Services,Transport Costs,13/02/2019,20200815,"1,929.90 ",Hall Fuels T/a WFL (UK) Limited,,
Fenland District Council,Fuel Control Account,Balance Sheet Services,Balance Sheet,13/02/2019,20200816,"36,159.40 ",Hall Fuels T/a WFL (UK) Limited,,
Fenland District Council,Support Services,Fenland Hall,Premises Costs,20/02/2019,20201100,683.50 ,Heating & Plumbing Services (Wisbech) Ltd,,
Fenland District Council,Central Services,Council Tax Cost of Collection,Supplies and Services,26/02/2019,10034736,256.50 ,HM Courts Service,Y,
Fenland District Council,Support Services,Fenland Hall,Supplies and Services,26/02/2019,10034726,63.85 ,ID Management Systems,Y,
Fenland District Council,Corporate and Democratic Core,Corporate Management,Supplies and Services,27/02/2019,20201306,"2,941.00 ",Improvement & Development Agency For Local Government,,
Fenland District Council,Corporate and Democratic Core,Corporate Management,Supplies and Services,13/02/2019,20200798,"2,900.00 ",Information Commissioner,,
Fenland District Council,Environment Services,Licensing,Supplies and Services,20/02/2019,20201177,509.00 ,Institute of Licensing (Events) Ltd,,
Fenland District Council,Support Services,Accountancy,Supplies and Services,13/02/2019,20200986,"2,775.00 ",Integra Associates Limited,,
Fenland District Council,Regeneration Programmes,Capital Services,Capital Costs,13/02/2019,20200893,850.00 ,J B Associates,,
Fenland District Council,Environment Services,Food Safety,Employee Costs,05/02/2019,20200505,773.19 ,James Andrews Recruitment Solutions,,
Fenland District Council,Environment Services,Food Safety,Employee Costs,05/02/2019,20200506,"1,077.78 ",James Andrews Recruitment Solutions,,
Fenland District Council,Environment Services,Food Safety,Employee Costs,05/02/2019,20200507,"1,170.34 ",James Andrews Recruitment Solutions,,
Fenland District Council,Environment Services,Food Safety,Employee Costs,05/02/2019,20200744,"1,160.63 ",James Andrews Recruitment Solutions,,
Fenland District Council,Environment Services,Food Safety,Employee Costs,20/02/2019,20201040,"1,171.50 ",James Andrews Recruitment Solutions,,
Fenland District Council,Environment Services,Food Safety,Employee Costs,20/02/2019,20201041,999.68 ,James Andrews Recruitment Solutions,,
Fenland District Council,Housing General Fund Services,Homeless Persons,Supplies and Services,05/02/2019,20200841,750.00 ,Redacted - Personal data,,
Fenland District Council,Environment Services,Streetscene,Supplies and Services,05/02/2019,20200488,"1,813.50 ",Kingdom Service Group Ltd,,
Fenland District Council,Environment Services,Streetscene,Supplies and Services,20/02/2019,20201047,"1,162.50 ",Kingdom Service Group Ltd,,
Fenland District Council,Housing General Fund Services,Controlling Migration,Supplies and Services,20/02/2019,20201050,"1,558.00 ",Kingsfield Computer Products Ltd,,
Fenland District Council,Housing General Fund Services,Homeless Persons,Supplies and Services,05/02/2019,20200800,540.00 ,Redacted - Personal data,,
Fenland District Council,Trading,Marine Services,Premises Costs,13/02/2019,20200503,"4,957.40 ",LCC Support Services Limited,,
Fenland District Council,Trading,Economic Estates,Premises Costs,20/02/2019,20201201,581.28 ,LCC Support Services Limited,,
Fenland District Council,Trading,Marine Services,Premises Costs,27/02/2019,20201202,"4,631.34 ",LCC Support Services Limited,,
Fenland District Council,Housing General Fund Services,Travellers Services,Supplies and Services,20/02/2019,20200921,"2,218.34 ",LGSS Law Ltd,,
Fenland District Council,Trading,Economic Estates,Premises Costs,20/02/2019,20201183,875.85 ,LGSS Law Ltd,,
Fenland District Council,Housing Grants,Capital Services,Capital Costs,05/02/2019,20200461,"1,902.16 ",Lynch HealthCare Ltd,,
Fenland District Council,Housing Grants,Capital Services,Capital Costs,20/02/2019,20200927,"4,769.84 ",Lynch HealthCare Ltd,,
Fenland District Council,Housing Grants,Capital Services,Capital Costs,27/02/2019,20201485,"2,000.00 ",M Nwabuzo,,
Fenland District Council,Housing Grants,Capital Services,Capital Costs,20/02/2019,20201260,"1,935.22 ",M Watson Construction T/A MWC Group,,
Fenland District Council,Trading,Marine Services,Transport Costs,20/02/2019,20201182,"3,070.66 ",Marlex Marine Technology Ltd,,
Fenland District Council,Trading,Marine Services,Transport Costs,27/02/2019,20201408,808.00 ,Marlex Marine Technology Ltd,,
Fenland District Council,The Base - Drinks Vending Machine,Balance Sheet Services,Balance Sheet,13/02/2019,20200923,"1,065.26 ",MARS Drinks UK Limited,,
Fenland District Council,Cultural and Related Services,Recreation Grounds & Allotments,Premises Costs,27/02/2019,20201137,"1,890.00 ",Martin Works Blacksmiths And Fabrications,,
Fenland District Council,General Suspense Control A/C,Balance Sheet Services,Balance Sheet,13/02/2019,20200809,"1,601.60 ",Mencap,,
Fenland District Council,Support Services,Information & Communication Technology,Supplies and Services,26/02/2019,10034711,7.90 ,Microsoft Ltd,Y,
Fenland District Council,Support Services,Human Resources,Employee Costs,05/02/2019,20200742,"1,650.00 ",MS Office Training Ltd,,
Fenland District Council,Central Services,Elections & Electoral Registration,Supplies and Services,26/02/2019,10034732,69.75 ,National Car Parks (NCP),Y,
Fenland District Council,Cultural and Related Services,Leisure Centres,Income,05/02/2019,20200736,"4,386.65 ",National Playing Fields Association,,
Fenland District Council,General Suspense Control A/C,Balance Sheet Services,Balance Sheet,20/02/2019,20201273,"1,554.00 ",Nene Infant & Nursey School,,
Fenland District Council,Housing General Fund Services,Travellers Services,Premises Costs,20/02/2019,20201092,775.00 ,Nene Property Solutions Ltd,,
Fenland District Council,Housing General Fund Services,Travellers Services,Premises Costs,20/02/2019,20201093,795.00 ,Nene Property Solutions Ltd,,
Fenland District Council,Environment Services,CCTV,Premises Costs,27/02/2019,20201313,"1,532.67 ",Nene Property Solutions Ltd,,
Fenland District Council,Trading,Marine Services,Supplies and Services,13/02/2019,20200875,698.14 ,Norcam Hydraulic Services Ltd,,
Fenland District Council,Environment Services,Street Cleansing,Supplies and Services,20/02/2019,20201086,769.46 ,Northern Municipal Spares Ltd,,
Fenland District Council,Support Services,Vehicle Workshop & Transport,Transport Costs,27/02/2019,20201385,575.24 ,NTM GB Ltd,,
Fenland District Council,Support Services,Information & Communication Technology,Supplies and Services,20/02/2019,20201356,965.67 ,O2 (Uk) Limited,,
Fenland District Council,Trading,Marine Services,Supplies and Services,20/02/2019,20201000,954.00 ,OceanWise Ltd,,
Fenland District Council,Support Services,Customer First,Premises Costs,27/02/2019,20201353,"1,074.88 ",OpenArch Properties Ltd,,
Fenland District Council,Support Services,Customer First,Premises Costs,27/02/2019,20201494,"7,500.00 ",OpenArch Properties Ltd,,
Fenland District Council,Support Services,Customer First,Premises Costs,27/02/2019,20201495,993.89 ,OpenArch Properties Ltd,,
Fenland District Council,Housing General Fund Services,Homeless Persons,Supplies and Services,27/02/2019,20201486,639.23 ,Optima,,
Fenland District Council,Corporate and Democratic Core,Corporate Management,Employee Costs,20/02/2019,20201091,"13,650.00 ",Penna Plc,,
Fenland District Council,Housing Grants,Capital Services,Capital Costs,20/02/2019,20201279,"1,500.00 ",Perce Baxter and Son Ltd,,
Fenland District Council,Housing General Fund Services,Housing Strategy,Employee Costs,05/02/2019,20200674,"12,068.50 ",Peterborough City Council,,
Fenland District Council,Support Services,Legal Services,Supplies and Services,05/02/2019,20200709,"4,870.00 ",Peterborough City Council,,
Fenland District Council,Support Services,Legal Services,Supplies and Services,05/02/2019,20200710,"4,625.75 ",Peterborough City Council,,
Fenland District Council,Support Services,Legal Services,Supplies and Services,27/02/2019,20201316,"10,356.21 ",Peterborough City Council,,
Fenland District Council,Support Services,Legal Services,Supplies and Services,27/02/2019,20201363,"6,317.31 ",Peterborough City Council,,
Fenland District Council,Corporate and Democratic Core,Corporate Management,Employee Costs,27/02/2019,20201463,"6,168.79 ",Peterborough City Council,,
Fenland District Council,Corporate and Democratic Core,Corporate Management,Employee Costs,27/02/2019,20201464,"6,168.79 ",Peterborough City Council,,
Fenland District Council,Support Services,Post & Reprographics,Supplies and Services,05/02/2019,20200195,"3,013.94 ",Pitney Bowes Ltd,,
Fenland District Council,Support Services,Post & Reprographics,Supplies and Services,05/02/2019,20200232,"3,008.00 ",Pitney Bowes Ltd,,
Fenland District Council,Support Services,Post & Reprographics,Supplies and Services,05/02/2019,20200233,"3,008.00 ",Pitney Bowes Ltd,,
Fenland District Council,Support Services,Post & Reprographics,Supplies and Services,05/02/2019,20200234,"3,013.56 ",Pitney Bowes Ltd,,
Fenland District Council,Support Services,Post & Reprographics,Supplies and Services,28/02/2019,20201165,"3,010.35 ",Pitney Bowes Ltd,,
Fenland District Council,Support Services,Post & Reprographics,Supplies and Services,27/02/2019,20201362,"1,081.01 ",Pitney Bowes Ltd,,
Fenland District Council,Trading,Marine Services,Supplies and Services,26/02/2019,10034740,285.83 ,Premier Inn,Y,
Fenland District Council,Support Services,Post & Reprographics,Supplies and Services,20/02/2019,20201208,"1,301.28 ",Premier Paper Group Ltd,,
Fenland District Council,Central Services,Elections & Electoral Registration,Supplies and Services,05/02/2019,20200607,780.00 ,Print for Business Ltd,,
Fenland District Council,Housing General Fund Services,Travellers Services,Premises Costs,20/02/2019,20201207,"2,440.00 ",Pro-Clean Industrial UK Ltd,,
Fenland District Council,Environment Services,CCTV,Supplies and Services,27/02/2019,20201132,"2,220.92 ",Quadrant Security Group Limited,,
Fenland District Council,Car Parks,Capital Services,Capital Costs,20/02/2019,20200994,"3,170.44 ",R J Warren Ltd,,
Fenland District Council,Environment Services,Public Health,Supplies and Services,20/02/2019,20201036,"3,715.00 ",Resource Futures Limited,,
Fenland District Council,"Highways, Roads and Transportation Services",Car Parks,Premises Costs,20/02/2019,20200671,751.10 ,Ringway Infrastructure Services Ltd,,
Fenland District Council,"Highways, Roads and Transportation Services",Car Parks,Premises Costs,05/02/2019,20200673,696.00 ,Ringway Infrastructure Services Ltd,,
Fenland District Council,"Highways, Roads and Transportation Services",Car Parks,Premises Costs,20/02/2019,20201020,"2,403.73 ",Ringway Infrastructure Services Ltd,,
Fenland District Council,"Highways, Roads and Transportation Services",Car Parks,Premises Costs,20/02/2019,20201021,"2,994.60 ",Ringway Infrastructure Services Ltd,,
Fenland District Council,"Highways, Roads and Transportation Services",Car Parks,Premises Costs,27/02/2019,20201318,"4,509.91 ",Ringway Infrastructure Services Ltd,,
Fenland District Council,Cultural and Related Services,Recreation Grounds & Allotments,Supplies and Services,26/02/2019,10034714,62.46 ,Route One,Y,
Fenland District Council,Central Services,Elections & Electoral Registration,Supplies and Services,27/02/2019,20201365,558.83 ,Royal Mail,,
Fenland District Council,Multiple Services,Multiple Services,Supplies and Services,05/02/2019,20199838,963.00 ,RSP Rail Travel Account,,
Fenland District Council,Multiple Services,Multiple Services,Supplies and Services,05/02/2019,20200231,"1,459.15 ",RSP Rail Travel Account,,
Fenland District Council,Trading,Marine Services,Supplies and Services,20/02/2019,20201057,588.00 ,Sealite UK Limited,,
Fenland District Council,Multiple Services,Multiple Services,Premises Costs,13/02/2019,20200790,994.50 ,Severn Trent Services Operations UK Ltd,,
Fenland District Council,Central Services,Elections & Electoral Registration,Supplies and Services,05/02/2019,20200564,945.70 ,Shaw & Sons Limited,,
Fenland District Council,Environment Services,Refuse Collection - Domestic,Premises Costs,26/02/2019,10034738,300.00 ,SJ Motors (Stephen Wright),Y,
Fenland District Council,Cultural and Related Services,Sports Development,Supplies and Services,20/02/2019,20201343,525.00 ,Skaters,,
Fenland District Council,Housing Grants,Capital Services,Capital Costs,20/02/2019,20200935,"4,105.00 ",Smirthwaite Ltd,,
Fenland District Council,Support Services,Human Resources,Supplies and Services,05/02/2019,20200811,"2,153.71 ",Sodexo Motivation Solutions UK Ltd,,
Fenland District Council,"Highways, Roads and Transportation Services",Transport Development,Supplies and Services,05/02/2019,20200565,"1,477.00 ",Soopa Doopa Branding Limited,,
Fenland District Council,Planning Services,Community Support,Supplies and Services,20/02/2019,20201140,765.00 ,Soopa Doopa Branding Limited,,
Fenland District Council,Housing General Fund Services,Homeless Persons,Employee Costs,20/02/2019,20201146,"-1,740.60 ",South Cambridgeshire District Council,,
Fenland District Council,Housing General Fund Services,Homeless Persons,Employee Costs,20/02/2019,20201147,"-4,289.05 ",South Cambridgeshire District Council,,
Fenland District Council,Housing General Fund Services,Homeless Persons,Employee Costs,20/02/2019,20201148,"4,289.05 ",South Cambridgeshire District Council,,
Fenland District Council,Housing General Fund Services,Homeless Persons,Employee Costs,20/02/2019,20201149,"3,418.75 ",South Cambridgeshire District Council,,
Fenland District Council,Housing General Fund Services,Homeless Persons,Employee Costs,20/02/2019,20201150,"-4,289.05 ",South Cambridgeshire District Council,,
Fenland District Council,Housing General Fund Services,Homeless Persons,Employee Costs,20/02/2019,20201151,"4,289.05 ",South Cambridgeshire District Council,,
Fenland District Council,Housing General Fund Services,Homeless Persons,Employee Costs,20/02/2019,20201152,"3,418.75 ",South Cambridgeshire District Council,,
Fenland District Council,Housing General Fund Services,Homeless Persons,Employee Costs,20/02/2019,20201153,"-4,289.05 ",South Cambridgeshire District Council,,
Fenland District Council,Housing General Fund Services,Homeless Persons,Employee Costs,20/02/2019,20201154,"4,289.05 ",South Cambridgeshire District Council,,
Fenland District Council,Housing General Fund Services,Homeless Persons,Employee Costs,20/02/2019,20201155,"3,418.75 ",South Cambridgeshire District Council,,
Fenland District Council,Housing General Fund Services,Homeless Persons,Employee Costs,20/02/2019,20201156,"-4,289.05 ",South Cambridgeshire District Council,,
Fenland District Council,Housing General Fund Services,Homeless Persons,Employee Costs,20/02/2019,20201157,"4,289.05 ",South Cambridgeshire District Council,,
Fenland District Council,Housing General Fund Services,Homeless Persons,Employee Costs,20/02/2019,20201158,"3,418.75 ",South Cambridgeshire District Council,,
Fenland District Council,Environment Services,Food Safety,Supplies and Services,05/02/2019,20200540,"1,937.00 ",South Holland District Council,,
Fenland District Council,Support Services,Human Resources,Employee Costs,26/02/2019,10034728,340.00 ,Specsavers,Y,
Fenland District Council,Housing General Fund Services,Homeless Persons,Supplies and Services,26/02/2019,10034722,375.00 ,Steve's Taxi and Private Hire,Y,
Fenland District Council,Trading,Economic Estates,Premises Costs,20/02/2019,20201139,880.00 ,Strattons Liquid Waste Disposal Limited,,
Fenland District Council,Multiple Services,Multiple Services,Premises Costs,20/02/2019,20201175,"2,145.00 ",Strattons Liquid Waste Disposal Limited,,
Fenland District Council,Support Services,Information & Communication Technology,Supplies and Services,26/02/2019,10034725,54.99 ,Symantec Limited,Y,
Fenland District Council,Support Services,Fenland Hall,Premises Costs,20/02/2019,20201095,555.18 ,T & J Fire,,
Fenland District Council,Multiple Services,Multiple Services,Premises Costs,05/02/2019,20200476,"1,463.34 ",T Clarke East Ltd,,
Fenland District Council,Housing Grants,Capital Services,Capital Costs,13/02/2019,20200858,"13,672.00 ",Terry Group Limited,,
Fenland District Council,Leisure Centres,Capital Services,Capital Costs,20/02/2019,20201055,"13,700.00 ",The Clarkson Alliance Limited,,
Fenland District Council,Housing General Fund Services,Homeless Persons,Supplies and Services,27/02/2019,20201467,"8,401.00 ",The Ferry Project,,
Fenland District Council,Cultural and Related Services,Sports Development,Supplies and Services,27/02/2019,20201492,525.00 ,The Knowledge Exchange Group Ltd T/A Westminster Insight,,
Fenland District Council,Trading,Marine Services,Premises Costs,27/02/2019,20201413,675.00 ,The Marine Safety Centre Ltd,,
Fenland District Council,Cultural and Related Services,Recreation Grounds & Allotments,Premises Costs,27/02/2019,20201420,"2,640.00 ",Tivoli Group Limited,,
Fenland District Council,Cultural and Related Services,Recreation Grounds & Allotments,Premises Costs,27/02/2019,20201421,"1,092.50 ",Tivoli Group Limited,,
Fenland District Council,Environment Services,Cemeteries,Premises Costs,27/02/2019,20201423,749.80 ,Tivoli Group Limited,,
Fenland District Council,Trading,Marine Services,Supplies and Services,20/02/2019,20201355,"18,350.00 ",Tollers Solicitors,,
Fenland District Council,Trading,Economic Estates,Premises Costs,20/02/2019,20201241,658.56 ,Total Gas & Power Limited,,
Fenland District Council,Support Services,Fenland Hall,Premises Costs,20/02/2019,20201242,"3,356.19 ",Total Gas & Power Limited,,
Fenland District Council,Trading,Marine Services,Premises Costs,20/02/2019,20201243,736.37 ,Total Gas & Power Limited,,
Fenland District Council,Trading,Economic Estates,Premises Costs,20/02/2019,20201245,"1,667.59 ",Total Gas & Power Limited,,
Fenland District Council,Trading,Economic Estates,Premises Costs,20/02/2019,20201246,"4,287.15 ",Total Gas & Power Limited,,
Fenland District Council,Trading,Economic Estates,Premises Costs,20/02/2019,20201248,894.09 ,Total Gas & Power Limited,,
Fenland District Council,Environment Services,Sewage Treatment Works,Premises Costs,20/02/2019,20201251,551.72 ,Total Gas & Power Limited,,
Fenland District Council,Support Services,The Base,Premises Costs,20/02/2019,20201253,"1,610.34 ",Total Gas & Power Limited,,
Fenland District Council,Office Accommodation,Capital Services,Capital Costs,27/02/2019,20200995,"9,229.00 ",TrueTech Integrated Ltd,,
Fenland District Council,Car Parks,Capital Services,Capital Costs,13/02/2019,20200925,"1,521.00 ",UK Power Networks,,
Fenland District Council,Support Services,Fenland Hall,Premises Costs,20/02/2019,20201069,"1,795.25 ",Vertiv Infrastructure Limited,,
Fenland District Council,Central Services,Elections & Electoral Registration,Supplies and Services,26/02/2019,10034715,195.84 ,Village Hotels Ltd,Y,
Fenland District Council,Support Services,Information & Communication Technology,Supplies and Services,27/02/2019,20201434,"2,590.83 ",Virgin Media Business,,
Fenland District Council,Support Services,Information & Communication Technology,Supplies and Services,27/02/2019,20201469,"2,590.83 ",Virgin Media Business,,
Fenland District Council,Support Services,Information & Communication Technology,Supplies and Services,27/02/2019,20201470,"2,590.83 ",Virgin Media Business,,
Fenland District Council,Housing General Fund Services,Homeless Persons,Supplies and Services,20/02/2019,20201320,650.00 ,Redacted - Personal data,,
Fenland District Council,Environment Services,Sewage Treatment Works,Premises Costs,20/02/2019,20201059,685.00 ,W H Shoebridge & Son,,
Fenland District Council,Planning Services,Conservation,Supplies and Services,05/02/2019,20200840,735.00 ,Walsoken Parish Council,,
Fenland District Council,Support Services,Vehicle Workshop & Transport,Transport Costs,05/02/2019,20200785,562.52 ,WasteParts UK Ltd,,
Fenland District Council,Cultural and Related Services,Leisure Centres,Supplies and Services,20/02/2019,20201351,"18,948.12 ",Wealden Leisure Ltd,,
Fenland District Council,Wind Turbines,Balance Sheet Services,Balance Sheet,20/02/2019,20201258,944.62 ,Whittlesey Patchwork Group,,
Fenland District Council,Corporate and Democratic Core,Democratic Services,Supplies and Services,27/02/2019,20201317,"2,262.50 ",Wilkin Chapman LLP,,
Fenland District Council,Corporate and Democratic Core,Corporate Management,Supplies and Services,05/02/2019,20200561,"4,575.00 ",Wilks Head & Eve,,
Fenland District Council,Highways District,Capital Services,Capital Costs,20/02/2019,20201031,"6,196.00 ",Wimblington Parish Council,,
Fenland District Council,Other Contributions,Balance Sheet Services,Balance Sheet,05/02/2019,20200731,"14,390.31 ",Wisbech Town Council,,
Fenland District Council,Planning Services,Markets & Fairs,Third Party Payments,27/02/2019,20201383,638.35 ,Wisbech Town Council,,
Fenland District Council,Environment Services,Sewage Treatment Works,Supplies and Services,13/02/2019,20200560,780.00 ,Wymark Limited,,
